[Event "*** Qualifier 1: Titled Tuesday 3|2 Blitz"]
[Site "Chess.com"]
[Date "2017.04.04"]
[Round "8"]
[White "amaidel"]
[Black "GamayevOleg"]
[Result "1-0"]
[WhiteElo "2489"]
[BlackElo "2412"]
[TimeControl "180+2"]
[EndTime "14:52:10 PDT"]
[Termination "amaidel won on time"]

1. e4 {[%clk 0:03:02]} 1... e6 {[%clk 0:02:54.9]} 2. d4 {[%clk 0:03:02]} 2... d5
{[%clk 0:02:55.8]} 3. Nc3 {[%clk 0:03:02.8]} 3... Bb4 {[%clk 0:02:53.9]} 4. e5
{[%clk 0:03:03.9]} 4... c5 {[%clk 0:02:53.9]} 5. a3 {[%clk 0:03:04.4]} 5...
Bxc3+ {[%clk 0:02:55]} 6. bxc3 {[%clk 0:03:06.3]} 6... Ne7 {[%clk 0:02:53]} 7.
Qg4 {[%clk 0:03:06.9]} 7... Qc7 {[%clk 0:02:52.4]} 8. Qxg7 {[%clk 0:03:06.1]}
8... Rg8 {[%clk 0:02:53.2]} 9. Qxh7 {[%clk 0:03:07.3]} 9... cxd4 {[%clk
0:02:54.7]} 10. Ne2 {[%clk 0:03:08.1]} 10... Nbc6 {[%clk 0:02:55.1]} 11. f4
{[%clk 0:03:08.3]} 11... dxc3 {[%clk 0:02:55.4]} 12. Qd3 {[%clk 0:03:08.1]}
12... Bd7 {[%clk 0:02:48.8]} 13. Be3 {[%clk 0:03:05.9]} 13... b6 {[%clk
0:02:41.6]} 14. Nxc3 {[%clk 0:02:58.4]} 14... a6 {[%clk 0:02:06.1]} 15. Rb1
{[%clk 0:02:58.6]} 15... b5 {[%clk 0:02:06.9]} 16. Ne2 {[%clk 0:02:37.5]} 16...
Na5 {[%clk 0:02:02.8]} 17. Nd4 {[%clk 0:02:35]} 17... Nc4 {[%clk 0:02:02]} 18.
g3 {[%clk 0:02:17.2]} 18... Qa5+ {[%clk 0:01:57.3]} 19. Bd2 {[%clk 0:02:18]}
19... Qxa3 {[%clk 0:01:54.1]} 20. Qxa3 {[%clk 0:02:17.2]} 20... Nxa3 {[%clk
0:01:54.9]} 21. Ra1 {[%clk 0:02:14.8]} 21... Nc4 {[%clk 0:01:33.9]} 22. Bb4
{[%clk 0:02:15.1]} 22... Nc6 {[%clk 0:01:22.8]} 23. Nxc6 {[%clk 0:02:14.8]}
23... Bxc6 {[%clk 0:01:24.7]} 24. Bxc4 {[%clk 0:02:03.9]} 24... dxc4 {[%clk
0:00:58.2]} 25. O-O {[%clk 0:02:04.7]} 25... Kd7 {[%clk 0:00:49.6]} 26. Rfd1+
{[%clk 0:01:59]} 26... Bd5 {[%clk 0:00:50.6]} 27. c3 {[%clk 0:01:59.8]} 27...
Kc6 {[%clk 0:00:50.6]} 28. Rd2 {[%clk 0:01:59.1]} 28... Kb6 {[%clk 0:00:51.5]}
29. Ba5+ {[%clk 0:01:51.3]} 29... Kc6 {[%clk 0:00:52.4]} 30. Kf2 {[%clk
0:01:50.3]} 30... Rh8 {[%clk 0:00:52.2]} 31. h4 {[%clk 0:01:50.4]} 31... Rag8
{[%clk 0:00:51.9]} 32. Bb4 {[%clk 0:01:44.9]} 32... Kb6 {[%clk 0:00:50.6]} 33.
Rda2 {[%clk 0:01:43.1]} 33... Bb7 {[%clk 0:00:47.5]} 34. Be7 {[%clk 0:01:41.7]}
34... Ra8 {[%clk 0:00:35.1]} 35. Bf6 {[%clk 0:01:40.9]} 35... Rh7 {[%clk
0:00:23.3]} 36. g4 {[%clk 0:01:31.2]} 36... a5 {[%clk 0:00:24.3]} 37. h5 {[%clk
0:01:31.9]} 37... Ra6 {[%clk 0:00:18.3]} 38. Rb2 {[%clk 0:01:22.7]} 38... a4
{[%clk 0:00:08.8]} 39. Ra3 {[%clk 0:01:18.9]} 39... Bc6 {[%clk 0:00:08.1]} 40.
Kg3 {[%clk 0:01:15.3]} 40... Kc5 {[%clk 0:00:07]} 41. Rh2 {[%clk 0:01:13.2]}
41... Ra7 {[%clk 0:00:06.1]} 42. g5 {[%clk 0:01:00.6]} 42... Be4 {[%clk
0:00:05.5]} 43. h6 {[%clk 0:00:54.5]} 43... Bd3 {[%clk 0:00:02.5]} 44. Bg7
{[%clk 0:00:52.8]} 1-0

[Event "*** Qualifier 1: Titled Tuesday 3|2 Blitz"]
[Site "Chess.com"]
[Date "2017.04.04"]
[Round "8"]
[White "oggy1984"]
[Black "Ginger_GM"]
[Result "1-0"]
[WhiteElo "2333"]
[BlackElo "2457"]
[TimeControl "180+2"]
[EndTime "14:52:12 PDT"]
[Termination "oggy1984 won by resignation"]

1. Nf3 {[%clk 0:03:02]} 1... f5 {[%clk 0:02:58.6]} 2. d3 {[%clk 0:03:02.3]} 2...
d6 {[%clk 0:02:58.5]} 3. e4 {[%clk 0:03:02.9]} 3... e5 {[%clk 0:02:58.8]} 4. Nc3
{[%clk 0:03:02.6]} 4... c5 {[%clk 0:02:59]} 5. g3 {[%clk 0:03:00.4]} 5... Nf6
{[%clk 0:02:54.5]} 6. Bg2 {[%clk 0:03:01.4]} 6... Nc6 {[%clk 0:02:52.1]} 7. O-O
{[%clk 0:03:02.1]} 7... Be7 {[%clk 0:02:52.3]} 8. Bg5 {[%clk 0:02:54.7]} 8...
O-O {[%clk 0:02:51.9]} 9. Bxf6 {[%clk 0:02:55.1]} 9... Bxf6 {[%clk 0:02:52.2]}
10. Nd5 {[%clk 0:02:56]} 10... f4 {[%clk 0:02:46.5]} 11. c3 {[%clk 0:02:54.5]}
11... g5 {[%clk 0:02:46.4]} 12. gxf4 {[%clk 0:02:53.2]} 12... exf4 {[%clk
0:02:37.4]} 13. Nd2 {[%clk 0:02:52.8]} 13... g4 {[%clk 0:02:29]} 14. Nxf4 {[%clk
0:02:46]} 14... Be5 {[%clk 0:02:10.1]} 15. Qb3+ {[%clk 0:02:35]} 15... Kh8
{[%clk 0:02:08.8]} 16. Nh5 {[%clk 0:02:35.4]} 16... Qh4 {[%clk 0:01:56.7]} 17.
Ng3 {[%clk 0:02:35.5]} 17... Rf6 {[%clk 0:01:56.3]} 18. Rfe1 {[%clk 0:01:41]}
18... Be6 {[%clk 0:01:22.7]} 19. Qxb7 {[%clk 0:01:39.7]} 19... Raf8 {[%clk
0:01:23.1]} 20. Ndf1 {[%clk 0:01:14.5]} 20... Nd8 {[%clk 0:00:46.2]} 21. Qe7
{[%clk 0:00:40.6]} 21... Nc6 {[%clk 0:00:44.8]} 22. Qc7 {[%clk 0:00:39.5]} 22...
Rxf2 {[%clk 0:00:23.7]} 23. Qxc6 {[%clk 0:00:29]} 23... Rxb2 {[%clk 0:00:20.4]}
24. Rab1 {[%clk 0:00:27.5]} 24... Rxa2 {[%clk 0:00:12]} 25. Qc7 {[%clk
0:00:27.9]} 25... Bxc3 {[%clk 0:00:11.5]} 26. Rb8 {[%clk 0:00:24.1]} 26... Bd4+
{[%clk 0:00:09.8]} 27. Kh1 {[%clk 0:00:23.2]} 27... Rf2 {[%clk 0:00:11.3]} 28.
Rxf8+ {[%clk 0:00:22.5]} 28... Rxf8 {[%clk 0:00:11.1]} 29. Rb1 {[%clk
0:00:22.9]} 29... Qf6 {[%clk 0:00:06.8]} 30. Qxd6 {[%clk 0:00:19.2]} 30... Be5
{[%clk 0:00:07.6]} 31. Qxc5 {[%clk 0:00:17.8]} 31... h5 {[%clk 0:00:08.1]} 32.
d4 {[%clk 0:00:16.6]} 32... Bxg3 {[%clk 0:00:06.1]} 33. Qxh5+ {[%clk 0:00:16.8]}
33... Kg8 {[%clk 0:00:07.6]} 34. Nxg3 {[%clk 0:00:16.5]} 34... Qxd4 {[%clk
0:00:08.5]} 35. Qg5+ {[%clk 0:00:16.9]} 35... Kh8 {[%clk 0:00:08.9]} 36. Qh6+
{[%clk 0:00:17]} 36... Kg8 {[%clk 0:00:06.6]} 37. Qxe6+ {[%clk 0:00:18.4]} 37...
Kh8 {[%clk 0:00:08]} 38. Nf5 {[%clk 0:00:18.5]} 38... Qd2 {[%clk 0:00:05.9]} 39.
Qe5+ {[%clk 0:00:17.1]} 1-0

[Event "*** Qualifier 1: Titled Tuesday 3|2 Blitz"]
[Site "Chess.com"]
[Date "2017.04.04"]
[Round "8"]
[White "aa175"]
[Black "peteseeger"]
[Result "0-1"]
[WhiteElo "1868"]
[BlackElo "2104"]
[TimeControl "180+2"]
[EndTime "14:52:17 PDT"]
[Termination "peteseeger won by checkmate"]

1. e4 {[%clk 0:03:02]} 1... c5 {[%clk 0:02:59.9]} 2. Nf3 {[%clk 0:03:03.2]} 2...
e6 {[%clk 0:02:59.7]} 3. d4 {[%clk 0:03:03.4]} 3... cxd4 {[%clk 0:03:00.4]} 4.
Nxd4 {[%clk 0:03:05.3]} 4... Nc6 {[%clk 0:03:01]} 5. Nc3 {[%clk 0:03:05.6]} 5...
Qc7 {[%clk 0:03:00.9]} 6. Be3 {[%clk 0:03:06.1]} 6... a6 {[%clk 0:03:00.4]} 7.
Be2 {[%clk 0:03:06.2]} 7... Nf6 {[%clk 0:02:56.4]} 8. O-O {[%clk 0:03:04]} 8...
b5 {[%clk 0:02:56.7]} 9. h3 {[%clk 0:03:04.7]} 9... Bb7 {[%clk 0:02:57.1]} 10.
f4 {[%clk 0:03:05]} 10... b4 {[%clk 0:02:50.6]} 11. Na4 {[%clk 0:02:59.4]} 11...
Nxe4 {[%clk 0:02:49]} 12. Nxc6 {[%clk 0:02:53.6]} 12... Qxc6 {[%clk 0:02:43.8]}
13. Nb6 {[%clk 0:02:49.7]} 13... Bc5 {[%clk 0:02:20.9]} 14. Nxa8 {[%clk
0:02:27.7]} 14... Bxe3+ {[%clk 0:02:19.1]} 15. Kh2 {[%clk 0:02:29.1]} 15... Nd2
{[%clk 0:01:31.8]} 16. Bf3 {[%clk 0:02:06.7]} 16... Bxf4+ {[%clk 0:01:25.1]} 17.
Kh1 {[%clk 0:02:05.4]} 17... Nxf3 {[%clk 0:01:24.3]} 18. Rxf3 {[%clk 0:01:59]}
18... Bxa8 {[%clk 0:01:23.4]} 19. Qf1 {[%clk 0:01:55.2]} 19... Bc7 {[%clk
0:01:17.6]} 20. Re1 {[%clk 0:01:43.2]} 20... Qd6 {[%clk 0:01:11.4]} 21. Kg1
{[%clk 0:01:19]} 21... Qh2+ {[%clk 0:01:03.7]} 22. Kf2 {[%clk 0:01:17.8]} 22...
Bxf3 {[%clk 0:00:56.9]} 23. Kxf3 {[%clk 0:01:18.6]} 23... O-O {[%clk 0:00:56]}
24. Qxa6 {[%clk 0:01:16.2]} 24... Qg3+ {[%clk 0:00:53.4]} 25. Ke2 {[%clk
0:01:16.9]} 25... Qxg2+ {[%clk 0:00:53.9]} 26. Kd1 {[%clk 0:01:17.7]} 26... Bf4
{[%clk 0:00:51.1]} 27. Qd3 {[%clk 0:01:06.1]} 27... Rc8 {[%clk 0:00:42.2]} 28.
Qe4 {[%clk 0:00:45.2]} 28... Qxe4 {[%clk 0:00:36.8]} 29. Rxe4 {[%clk 0:00:45.3]}
29... Bd6 {[%clk 0:00:37.1]} 30. Rd4 {[%clk 0:00:45.7]} 30... Rc6 {[%clk
0:00:36.5]} 31. c3 {[%clk 0:00:45.2]} 31... bxc3 {[%clk 0:00:36.5]} 32. bxc3
{[%clk 0:00:47.1]} 32... f5 {[%clk 0:00:37]} 33. c4 {[%clk 0:00:47.4]} 33... Kf7
{[%clk 0:00:37.4]} 34. c5 {[%clk 0:00:48.5]} 34... Bxc5 {[%clk 0:00:37.7]} 35.
Rxd7+ {[%clk 0:00:49.4]} 35... Kf6 {[%clk 0:00:39.2]} 36. a4 {[%clk 0:00:50.2]}
36... h5 {[%clk 0:00:36.9]} 37. Rb7 {[%clk 0:00:49.4]} 37... g5 {[%clk
0:00:36.4]} 38. a5 {[%clk 0:00:48.7]} 38... g4 {[%clk 0:00:36.5]} 39. hxg4
{[%clk 0:00:48.8]} 39... hxg4 {[%clk 0:00:37.1]} 40. Ke2 {[%clk 0:00:50.2]}
40... g3 {[%clk 0:00:35.7]} 41. Kf3 {[%clk 0:00:51.2]} 41... Bf2 {[%clk
0:00:33.2]} 42. Rb3 {[%clk 0:00:50.6]} 42... e5 {[%clk 0:00:32.8]} 43. Ra3
{[%clk 0:00:46.1]} 43... e4+ {[%clk 0:00:33.1]} 44. Kg2 {[%clk 0:00:46.6]} 44...
f4 {[%clk 0:00:33.6]} 45. a6 {[%clk 0:00:45.2]} 45... f3+ {[%clk 0:00:34.6]} 46.
Rxf3+ {[%clk 0:00:46.3]} 46... exf3+ {[%clk 0:00:34.9]} 47. Kxf3 {[%clk
0:00:48.2]} 47... Rxa6 {[%clk 0:00:35.4]} 48. Kg2 {[%clk 0:00:50.1]} 48... Kg5
{[%clk 0:00:36.1]} 49. Kf3 {[%clk 0:00:51.6]} 49... Ra3+ {[%clk 0:00:36.1]} 50.
Kg2 {[%clk 0:00:53.5]} 50... Kg4 {[%clk 0:00:37.2]} 51. Kh1 {[%clk 0:00:55.4]}
51... Be1 {[%clk 0:00:32.1]} 52. Kg2 {[%clk 0:00:57.3]} 52... Ra2+ {[%clk
0:00:32.1]} 53. Kh1 {[%clk 0:00:59.2]} 53... Kh3 {[%clk 0:00:30.1]} 54. Kg1
{[%clk 0:00:59.8]} 54... Bf2+ {[%clk 0:00:30.3]} 55. Kf1 {[%clk 0:00:59.7]}
55... g2# {[%clk 0:00:31.2]} 0-1

[Event "*** Qualifier 1: Titled Tuesday 3|2 Blitz"]
[Site "Chess.com"]
[Date "2017.04.04"]
[Round "8"]
[White "Fiona"]
[Black "AndrewMcStone"]
[Result "0-1"]
[WhiteElo "2167"]
[BlackElo "2019"]
[TimeControl "180+2"]
[EndTime "14:52:18 PDT"]
[Termination "AndrewMcStone won by resignation"]

1. e4 {[%clk 0:03:02]} 1... e6 {[%clk 0:03:00.7]} 2. Nf3 {[%clk 0:03:01]} 2...
d5 {[%clk 0:03:01.3]} 3. e5 {[%clk 0:03:01.6]} 3... c5 {[%clk 0:02:36.5]} 4. b4
{[%clk 0:03:02.6]} 4... c4 {[%clk 0:02:37.4]} 5. a3 {[%clk 0:02:56.1]} 5... a5
{[%clk 0:02:30.8]} 6. c3 {[%clk 0:02:39]} 6... axb4 {[%clk 0:02:27.7]} 7. cxb4
{[%clk 0:02:40.9]} 7... Bxb4 {[%clk 0:02:13.8]} 8. Bb2 {[%clk 0:02:38.3]} 8...
Bc5 {[%clk 0:02:10.3]} 9. d4 {[%clk 0:02:35.2]} 9... cxd3 {[%clk 0:02:04.9]} 10.
Bxd3 {[%clk 0:02:34.6]} 10... Qb6 {[%clk 0:01:59.9]} 11. Qc2 {[%clk 0:02:23.6]}
11... Ne7 {[%clk 0:01:50.7]} 12. O-O {[%clk 0:02:13.4]} 12... Ng6 {[%clk
0:01:41.6]} 13. Nc3 {[%clk 0:02:09.7]} 13... Bd7 {[%clk 0:01:40.9]} 14. g3
{[%clk 0:02:08.5]} 14... Nc6 {[%clk 0:01:30.3]} 15. Rab1 {[%clk 0:01:51]} 15...
O-O {[%clk 0:01:23.9]} 16. Na4 {[%clk 0:01:42.5]} 16... Rxa4 {[%clk 0:01:22.9]}
17. Qxa4 {[%clk 0:01:44.4]} 17... Ncxe5 {[%clk 0:01:11.8]} 18. Bxe5 {[%clk
0:01:36.5]} 18... Bxa4 {[%clk 0:01:07.2]} 19. Rxb6 {[%clk 0:01:37]} 19... Bxb6
{[%clk 0:01:05.1]} 20. Rb1 {[%clk 0:01:34.2]} 20... Nxe5 {[%clk 0:01:01.4]} 21.
Nxe5 {[%clk 0:01:36.1]} 21... Bc7 {[%clk 0:00:52.1]} 22. f4 {[%clk 0:01:25.7]}
22... Bxe5 {[%clk 0:00:49.7]} 23. fxe5 {[%clk 0:01:27.6]} 23... Bc6 {[%clk
0:00:50]} 24. Kf2 {[%clk 0:01:23.5]} 24... Ra8 {[%clk 0:00:49.6]} 25. Rb3 {[%clk
0:01:23.2]} 25... f6 {[%clk 0:00:40.8]} 26. exf6 {[%clk 0:01:20.8]} 26... gxf6
{[%clk 0:00:42.7]} 27. Be2 {[%clk 0:01:16.4]} 27... Ra4 {[%clk 0:00:39]} 28. g4
{[%clk 0:01:15.8]} 28... Kf7 {[%clk 0:00:39.3]} 29. Rh3 {[%clk 0:01:16.3]} 29...
Kg7 {[%clk 0:00:37]} 30. Bd1 {[%clk 0:01:15.7]} 30... Rf4+ {[%clk 0:00:35.4]}
31. Ke3 {[%clk 0:01:08]} 31... e5 {[%clk 0:00:34.1]} 32. Bc2 {[%clk 0:01:07.7]}
32... d4+ {[%clk 0:00:35.2]} 33. Kd2 {[%clk 0:00:57.8]} 33... Be4 {[%clk
0:00:36]} 34. Bd1 {[%clk 0:00:52.2]} 34... Bg6 {[%clk 0:00:17]} 35. Rb3 {[%clk
0:00:50.1]} 35... Rf2+ {[%clk 0:00:17.4]} 36. Ke1 {[%clk 0:00:50]} 36... Rxh2
{[%clk 0:00:17.5]} 37. Rxb7+ {[%clk 0:00:51]} 37... Kh6 {[%clk 0:00:18.8]} 38.
Rb6 {[%clk 0:00:52]} 38... Kg5 {[%clk 0:00:18.8]} 39. a4 {[%clk 0:00:52.4]}
39... d3 {[%clk 0:00:18.5]} 40. Rd6 {[%clk 0:00:43.2]} 40... e4 {[%clk
0:00:19.3]} 41. Rd5+ {[%clk 0:00:40.6]} 41... Kf4 {[%clk 0:00:20.2]} 0-1

[Event "*** Qualifier 1: Titled Tuesday 3|2 Blitz"]
[Site "Chess.com"]
[Date "2017.04.04"]
[Round "8"]
[White "StoreySniper"]
[Black "ruvat"]
[Result "1-0"]
[WhiteElo "2232"]
[BlackElo "2218"]
[TimeControl "180+2"]
[EndTime "14:52:31 PDT"]
[Termination "StoreySniper won on time"]

1. d4 {[%clk 0:03:02]} 1... d6 {[%clk 0:03:00.6]} 2. e4 {[%clk 0:02:59.5]} 2...
Nf6 {[%clk 0:03:00.8]} 3. f3 {[%clk 0:02:59.6]} 3... e5 {[%clk 0:03:01]} 4. dxe5
{[%clk 0:02:58.6]} 4... dxe5 {[%clk 0:03:02.9]} 5. Qxd8+ {[%clk 0:02:58.8]} 5...
Kxd8 {[%clk 0:03:04.8]} 6. Be3 {[%clk 0:02:55.3]} 6... Be6 {[%clk 0:03:01]} 7.
Nd2 {[%clk 0:02:55.5]} 7... Nbd7 {[%clk 0:03:01.2]} 8. Bc4 {[%clk 0:02:56]} 8...
Bxc4 {[%clk 0:02:54.4]} 9. Nxc4 {[%clk 0:02:56.5]} 9... Bd6 {[%clk 0:02:31]} 10.
O-O-O {[%clk 0:02:54]} 10... Ke7 {[%clk 0:02:31.6]} 11. Ne2 {[%clk 0:02:52.9]}
11... Nb6 {[%clk 0:02:11.6]} 12. Bxb6 {[%clk 0:02:46]} 12... axb6 {[%clk
0:02:10.7]} 13. Nxd6 {[%clk 0:02:47.1]} 13... cxd6 {[%clk 0:02:10.6]} 14. Nc3
{[%clk 0:02:48.5]} 14... Rhc8 {[%clk 0:02:04.1]} 15. Rd3 {[%clk 0:02:46.9]}
15... Rc6 {[%clk 0:02:01.9]} 16. Rhd1 {[%clk 0:02:45.8]} 16... Ra5 {[%clk
0:02:00.4]} 17. b4 {[%clk 0:02:32.5]} 17... Ra8 {[%clk 0:01:31]} 18. Kb2 {[%clk
0:02:21.6]} 18... Rac8 {[%clk 0:01:22.5]} 19. R1d2 {[%clk 0:02:22.5]} 19... Rc4
{[%clk 0:01:11.6]} 20. a3 {[%clk 0:02:21.4]} 20... R8c6 {[%clk 0:01:03.4]} 21.
Nb5 {[%clk 0:01:55.7]} 21... Ne8 {[%clk 0:00:59.2]} 22. c3 {[%clk 0:01:56.1]}
22... g6 {[%clk 0:00:49]} 23. a4 {[%clk 0:01:49.6]} 23... f5 {[%clk 0:00:46.6]}
24. exf5 {[%clk 0:01:30.8]} 24... gxf5 {[%clk 0:00:48.5]} 25. g3 {[%clk
0:01:26.6]} 25... h5 {[%clk 0:00:48.1]} 26. Na3 {[%clk 0:01:25.2]} 26... e4
{[%clk 0:00:38.9]} 27. Re3 {[%clk 0:01:13]} 27... Nf6 {[%clk 0:00:34.1]} 28.
Nxc4 {[%clk 0:01:11.5]} 28... Rxc4 {[%clk 0:00:35.7]} 29. Rd4 {[%clk 0:01:00]}
29... Rxd4 {[%clk 0:00:31.7]} 30. cxd4 {[%clk 0:01:00.6]} 30... Ke6 {[%clk
0:00:27.9]} 31. fxe4 {[%clk 0:00:46]} 31... Nxe4 {[%clk 0:00:14]} 32. Rf3 {[%clk
0:00:36]} 32... Nf6 {[%clk 0:00:12.4]} 33. h3 {[%clk 0:00:32.7]} 33... Nd5
{[%clk 0:00:12.5]} 34. Kb3 {[%clk 0:00:32.8]} 34... Ne7 {[%clk 0:00:08.5]} 35.
Kc4 {[%clk 0:00:31.2]} 35... Nd5 {[%clk 0:00:02.2]} 36. h4 {[%clk 0:00:26.2]}
36... Nc7 {[%clk 0:00:02.6]} 37. Re3+ {[%clk 0:00:24.7]} 37... Kf6 {[%clk
0:00:03.6]} 38. d5 {[%clk 0:00:24.2]} 38... f4 {[%clk 0:00:02]} 39. gxf4 {[%clk
0:00:18.7]} 39... Kf5 {[%clk 0:00:02.4]} 40. Re7 {[%clk 0:00:12.3]} 40... Na6
{[%clk 0:00:03.1]} 41. Rxb7 {[%clk 0:00:08]} 1-0

[Event "*** Qualifier 1: Titled Tuesday 3|2 Blitz"]
[Site "Chess.com"]
[Date "2017.04.04"]
[Round "8"]
[White "dolynachess"]
[Black "GM_Donatello"]
[Result "1-0"]
[WhiteElo "2314"]
[BlackElo "2515"]
[TimeControl "180+2"]
[EndTime "14:52:32 PDT"]
[Termination "dolynachess won by resignation"]

1. c4 {[%clk 0:03:02]} 1... c5 {[%clk 0:02:45.4]} 2. Nc3 {[%clk 0:03:02.3]} 2...
g6 {[%clk 0:02:45.9]} 3. g3 {[%clk 0:03:03.8]} 3... Bg7 {[%clk 0:02:47]} 4. Bg2
{[%clk 0:03:05.5]} 4... Nc6 {[%clk 0:02:47.9]} 5. Nf3 {[%clk 0:03:07.1]} 5... d6
{[%clk 0:02:49.1]} 6. O-O {[%clk 0:03:08.2]} 6... Nf6 {[%clk 0:02:50.4]} 7. a3
{[%clk 0:03:08.8]} 7... O-O {[%clk 0:02:50.6]} 8. Rb1 {[%clk 0:03:10.1]} 8... a5
{[%clk 0:02:50.7]} 9. Ne1 {[%clk 0:03:09.9]} 9... Rb8 {[%clk 0:02:50.8]} 10. Nc2
{[%clk 0:03:11.3]} 10... Bf5 {[%clk 0:02:40.9]} 11. d3 {[%clk 0:03:11.5]} 11...
Nd4 {[%clk 0:02:38.6]} 12. b4 {[%clk 0:03:10.9]} 12... axb4 {[%clk 0:02:38]} 13.
axb4 {[%clk 0:03:12.7]} 13... b6 {[%clk 0:02:39.3]} 14. b5 {[%clk 0:02:42.4]}
14... Qd7 {[%clk 0:02:33.4]} 15. Ra1 {[%clk 0:02:34.8]} 15... Bh3 {[%clk
0:02:33.2]} 16. Ra6 {[%clk 0:02:31.6]} 16... Bxg2 {[%clk 0:02:32.1]} 17. Kxg2
{[%clk 0:02:33.5]} 17... Qb7+ {[%clk 0:02:26.9]} 18. f3 {[%clk 0:02:32.3]} 18...
Ra8 {[%clk 0:02:28.2]} 19. Rxa8 {[%clk 0:02:30.3]} 19... Rxa8 {[%clk 0:02:30.1]}
20. Be3 {[%clk 0:02:12.8]} 20... Nxc2 {[%clk 0:02:19.5]} 21. Qxc2 {[%clk
0:02:13.1]} 21... d5 {[%clk 0:02:21.4]} 22. Bg5 {[%clk 0:02:10.7]} 22... e6
{[%clk 0:02:11.6]} 23. Qb3 {[%clk 0:02:02.9]} 23... d4 {[%clk 0:01:57.4]} 24.
Bxf6 {[%clk 0:02:01.9]} 24... Bxf6 {[%clk 0:01:56.5]} 25. Ne4 {[%clk 0:02:03.7]}
25... Be7 {[%clk 0:01:57.3]} 26. Qb2 {[%clk 0:01:53]} 26... f5 {[%clk
0:01:57.3]} 27. Nd2 {[%clk 0:01:52.8]} 27... Bg5 {[%clk 0:01:49.8]} 28. Nb3
{[%clk 0:01:51.3]} 28... e5 {[%clk 0:01:49.3]} 29. Ra1 {[%clk 0:01:49.4]} 29...
e4 {[%clk 0:01:50.4]} 30. Rxa8+ {[%clk 0:01:45.2]} 30... Qxa8 {[%clk 0:01:50.7]}
31. Qa1 {[%clk 0:01:40]} 31... exf3+ {[%clk 0:01:40.5]} 32. exf3 {[%clk
0:01:41.9]} 32... Qe8 {[%clk 0:01:41.7]} 33. Qd1 {[%clk 0:01:34.2]} 33... Be3
{[%clk 0:01:36.2]} 34. f4 {[%clk 0:01:15.8]} 34... Qa8+ {[%clk 0:01:34]} 35. Kh3
{[%clk 0:01:15.4]} 35... Kg7 {[%clk 0:01:31.5]} 36. Na1 {[%clk 0:01:09.9]} 36...
Kh6 {[%clk 0:01:17]} 37. Nc2 {[%clk 0:01:09.6]} 37... Qa2 {[%clk 0:01:13]} 38.
Ne1 {[%clk 0:01:02.6]} 38... Kg7 {[%clk 0:00:52.4]} 39. Nf3 {[%clk 0:00:52]}
39... h6 {[%clk 0:00:53]} 40. Ne5 {[%clk 0:00:51.5]} 40... g5 {[%clk 0:00:52.3]}
41. Qh1 {[%clk 0:00:36.6]} 41... Qa7 {[%clk 0:00:25.3]} 42. Qc6 {[%clk
0:00:21.2]} 42... gxf4 {[%clk 0:00:24.6]} 43. Qg6+ {[%clk 0:00:21]} 43... Kf8
{[%clk 0:00:24.5]} 44. Qxf5+ {[%clk 0:00:22.1]} 44... Ke8 {[%clk 0:00:24.9]} 45.
gxf4 {[%clk 0:00:23.4]} 45... Qg7 {[%clk 0:00:24.1]} 46. Qg6+ {[%clk 0:00:23.2]}
1-0

[Event "*** Qualifier 1: Titled Tuesday 3|2 Blitz"]
[Site "Chess.com"]
[Date "2017.04.04"]
[Round "8"]
[White "jposthuma"]
[Black "Aragon"]
[Result "1-0"]
[WhiteElo "2233"]
[BlackElo "1998"]
[TimeControl "180+2"]
[EndTime "14:52:40 PDT"]
[Termination "jposthuma won by resignation"]

1. b3 {[%clk 0:03:02]} 1... d5 {[%clk 0:02:57.2]} 2. Bb2 {[%clk 0:03:02.4]} 2...
Nf6 {[%clk 0:02:56.2]} 3. e3 {[%clk 0:03:02.3]} 3... c5 {[%clk 0:02:54.3]} 4. f4
{[%clk 0:03:01.3]} 4... Nc6 {[%clk 0:02:55.1]} 5. Nf3 {[%clk 0:03:01.9]} 5... e6
{[%clk 0:02:54.8]} 6. Bb5 {[%clk 0:03:02.7]} 6... Bd7 {[%clk 0:02:54.4]} 7. O-O
{[%clk 0:03:02.9]} 7... Be7 {[%clk 0:02:54.9]} 8. d3 {[%clk 0:03:01.2]} 8... O-O
{[%clk 0:02:56.1]} 9. Nbd2 {[%clk 0:03:02.2]} 9... a6 {[%clk 0:02:54.8]} 10.
Bxc6 {[%clk 0:03:03.2]} 10... Bxc6 {[%clk 0:02:56.7]} 11. Ne5 {[%clk 0:03:04.8]}
11... Be8 {[%clk 0:02:57.8]} 12. Qe2 {[%clk 0:02:32.6]} 12... Nd7 {[%clk
0:02:58.6]} 13. Ndf3 {[%clk 0:02:29.6]} 13... Rc8 {[%clk 0:02:59.1]} 14. e4
{[%clk 0:02:20.7]} 14... Bf6 {[%clk 0:02:52.4]} 15. Nxd7 {[%clk 0:02:13.9]}
15... Bxb2 {[%clk 0:02:50.7]} 16. Nxf8 {[%clk 0:02:11.7]} 16... Bxa1 {[%clk
0:02:35.2]} 17. Nxe6 {[%clk 0:02:09.9]} 17... fxe6 {[%clk 0:02:27.2]} 18. Rxa1
{[%clk 0:02:10.2]} 18... dxe4 {[%clk 0:02:28.3]} 19. Qxe4 {[%clk 0:02:07.5]}
19... Qd5 {[%clk 0:02:28.5]} 20. Re1 {[%clk 0:02:05.9]} 20... Qxe4 {[%clk
0:02:21.3]} 21. Rxe4 {[%clk 0:02:07.8]} 21... Rc6 {[%clk 0:02:13.9]} 22. Ne5
{[%clk 0:01:59.6]} 22... Rd6 {[%clk 0:02:05.7]} 23. Nc4 {[%clk 0:01:59.3]} 23...
Rc6 {[%clk 0:02:06.4]} 24. Na5 {[%clk 0:01:51.3]} 24... Rb6 {[%clk 0:02:05.6]}
25. a4 {[%clk 0:01:51.8]} 25... Kf7 {[%clk 0:01:45.6]} 26. Re5 {[%clk
0:01:52.2]} 26... Rb4 {[%clk 0:01:43.4]} 27. Rxc5 {[%clk 0:01:42.6]} 27... b6
{[%clk 0:01:29.9]} 28. Rc7+ {[%clk 0:01:42.9]} 28... Kf6 {[%clk 0:01:26.9]} 29.
Nc4 {[%clk 0:01:42.5]} 29... b5 {[%clk 0:01:20]} 30. Nd6 {[%clk 0:01:37.9]}
30... Bg6 {[%clk 0:01:15.4]} 31. axb5 {[%clk 0:01:38.6]} 31... axb5 {[%clk
0:01:14.6]} 32. g3 {[%clk 0:01:31.7]} 32... e5 {[%clk 0:01:10.6]} 33. f5 {[%clk
0:01:09.4]} 33... Bxf5 {[%clk 0:01:00]} 34. Ne8+ {[%clk 0:01:03.1]} 34... Kg5
{[%clk 0:00:56.4]} 35. Nxg7 {[%clk 0:00:56.4]} 35... Bg6 {[%clk 0:00:55.2]} 36.
Ne6+ {[%clk 0:00:48.1]} 36... Kg4 {[%clk 0:00:51.4]} 37. Kg2 {[%clk 0:00:33.4]}
37... e4 {[%clk 0:00:52.3]} 38. Rc5 {[%clk 0:00:24]} 38... Bf5 {[%clk
0:00:36.9]} 39. h3+ {[%clk 0:00:23.8]} 39... Kh5 {[%clk 0:00:38.3]} 40. Rxf5+
{[%clk 0:00:22.4]} 40... Kg6 {[%clk 0:00:40]} 41. Re5 {[%clk 0:00:18.9]} 41...
exd3 {[%clk 0:00:39.2]} 42. Nf4+ {[%clk 0:00:19.6]} 42... Kg7 {[%clk 0:00:36.5]}
43. Nxd3 {[%clk 0:00:19.9]} 43... Rd4 {[%clk 0:00:37.2]} 44. Rxb5 {[%clk
0:00:20.7]} 44... Re4 {[%clk 0:00:38.6]} 45. Re5 {[%clk 0:00:21.3]} 45... Rd4
{[%clk 0:00:39.2]} 46. b4 {[%clk 0:00:21.8]} 46... Rc4 {[%clk 0:00:39.9]} 47.
Re2 {[%clk 0:00:22.8]} 47... Kf6 {[%clk 0:00:38.4]} 48. b5 {[%clk 0:00:22.3]}
48... Ra4 {[%clk 0:00:39.1]} 49. b6 {[%clk 0:00:19.3]} 49... Ra6 {[%clk
0:00:38.7]} 50. Re6+ {[%clk 0:00:15.4]} 50... Kf7 {[%clk 0:00:38]} 51. b7 {[%clk
0:00:15]} 51... Rxe6 {[%clk 0:00:38.8]} 52. b8=Q {[%clk 0:00:16.2]} 52... Re2+
{[%clk 0:00:40.7]} 53. Kf3 {[%clk 0:00:16.6]} 53... Rxc2 {[%clk 0:00:42.6]} 54.
Qb3+ {[%clk 0:00:17.4]} 54... Kg6 {[%clk 0:00:43.2]} 55. Qxc2 {[%clk 0:00:18.4]}
1-0